bitfinex/quotes_ETHUSD_20250925
["timestamp","ask_amount","ask_price","bid_price","bid_amount"]
[1758761231902,9.47171985,4144.7,4144.6,0.002]
[1758761233124,9.93451985,4144.7,4144.6,0.002]
[1758761233421,3.0,4144.7,4144.6,0.002]
[1758761233623,11.48171985,4144.7,4144.6,0.002]
[1758761233950,3.0,4144.7,4144.6,0.002]
[1758761234090,9.069,4144.7,4144.6,0.002]
[1758761234290,11.48171985,4144.7,4144.6,0.002]
[1758761234938,7.06,4144.7,4144.6,0.002]
[1758761235141,11.48271985,4144.7,4144.6,0.002]
[1758761235584,9.07,4144.7,4144.6,0.002]
[1758761236048,7.059,4144.7,4144.6,0.6883]
[1758761236332,7.059,4144.7,4144.6,0.002]
[1758761237031,7.059,4144.7,4144.6,0.6883]
[1758761237190,7.059,4144.7,4144.6,3.10107807]
[1758761237191,3.0,4144.7,4144.6,3.10107807]
[1758761237391,7.059,4144.7,4144.6,0.6883]
[1758761238200,3.0,4144.7,4144.6,0.6883]
[1758761238401,7.059,4144.7,4144.6,0.6883]
[1758761239131,3.0,4144.7,4144.6,3.10107807]
[1758761239363,7.059,4144.7,4144.6,0.6883]
[1758761239913,7.059,4144.7,4144.6,3.10107807]
[1758761240102,3.0,4144.7,4144.6,3.65267332]
[1758761240308,0.12,4144.9,4144.7,2.41267136]
[1758761240498,4.059,4144.8,4144.7,2.41267136]
[1758761241130,4.059,4144.8,4144.7,17.59897136]
[1758761241299,0.12,4144.9,4144.8,2.41266164]
[1758761241635,7.179,4144.9,4144.8,0.6863]
[1758761241807,7.179,4144.9,4144.8,3.09896164]
[1758761243139,3.12,4144.9,4144.8,3.09896164]
[1758761243346,7.179,4144.9,4144.8,3.09896164]
[1758761243643,7.179,4144.9,4144.8,3.12308825]
[1758761243942,3.12,4144.9,4144.8,3.09896164]
[1758761244151,0.12,4144.9,4144.8,3.12308825]
[1758761244441,2.01,4145.7,4145.0,0.792]
[1758761244626,7.059,4145.6,4145.5,2.41225401]
[1758761244819,7.059,4145.6,4145.5,3.09855401]
[1758761245142,0.12,4145.7,4145.5,3.09855401]
[1758761245343,0.12,4145.7,4145.6,2.41219606]
[1758761245639,7.179,4145.7,4145.6,3.09849606]
[1758761246213,3.12,4145.7,4145.6,3.09849606]
[1758761246412,7.179,4145.7,4145.6,3.09849606]
[1758761248322,7.179,4145.7,4145.2,2.41237273]
[1758761248637,7.179,4145.7,4145.1,14.5]
[1758761248638,7.059,4145.7,4145.1,14.5]
[1758761248821,0.12,4145.3,4145.1,14.5]
[1758761249021,0.12,4145.3,4145.2,2.41242883]
[1758761249222,0.12,4145.3,4145.2,2.85362883]
[1758761249527,0.12,4145.3,4145.2,3.09872883]
[1758761249929,0.12,4145.3,4144.6,2.53473988]
[1758761249930,3.33971737,4145.3,4144.6,0.002]
[1758761250152,22.12991657,4144.7,4144.1,0.022]
[1758761250360,2.41324388,4143.8,4143.7,0.002]
[1758761250656,2.41359335,4143.2,4142.1,0.02]
[1758761250853,32.30617207,4143.2,4142.1,0.02]
[1758761251027,32.72497207,4143.2,4142.1,0.02]
[1758761251222,32.72497207,4143.2,4141.1,0.02]
[1758761251223,2.41487563,4141.0,4138.9,14.5]
[1758761251444,2.41487563,4141.0,4138.6,0.4831576]
[1758761251445,25.34762101,4141.0,4138.6,0.4831576]
[1758761251612,5.01,4141.0,4138.8,0.019]
[1758761251814,11.66787563,4141.0,4140.1,14.52]
[1758761252031,12.46863285,4141.0,4140.1,0.02]
[1758761252227,3.0,4141.0,4140.1,0.02]
[1758761252446,9.253,4141.0,4140.1,14.52]
[1758761252646,11.66787563,4141.0,4140.1,14.52]
[1758761252843,9.253,4141.0,4140.1,14.52]
[1758761253260,9.253,4141.0,4140.3,0.2451]
[1758761253461,3.0,4141.0,4140.3,0.2451]
[1758761253844,3.0,4141.0,4140.6,0.2451]
[1758761254156,9.254,4141.0,4140.9,0.6893]
[1758761254546,9.254,4141.0,4140.9,3.10423395]
[1758761254547,3.0,4141.0,4140.9,3.10423395]
[1758761254711,7.242,4141.0,4140.9,0.6893]
[1758761254916,9.253,4141.0,4140.9,0.6893]
[1758761255127,3.0,4141.0,4140.9,0.6893]
[1758761255349,9.253,4141.0,4140.9,0.6893]
[1758761255564,3.0,4141.0,4140.9,3.10423395]
[1758761255960,7.24,4141.0,4140.9,3.10423395]
[1758761256519,7.24,4141.0,4140.9,0.6893]
[1758761256723,7.24,4141.0,4140.9,3.10423395]
[1758761256926,3.0,4141.0,4140.9,3.10423395]
[1758761257230,7.238,4141.0,4140.9,3.10423395]
[1758761257435,4.237,4141.1,4140.9,0.71344933]
[1758761257745,4.025,4141.1,4141.0,3.89317563]
[1758761257947,4.241,4141.3,4141.2,3.206759]
[1758761258189,0.02,4142.9,4141.4,2.41464239]
[1758761258190,4.241,4141.5,4141.4,2.41464239]
[1758761258458,2.011,4142.0,4141.4,2.41464239]
[1758761258459,2.011,4142.0,4141.7,2.41441881]
[1758761258669,7.241,4141.9,4141.8,0.2451]
[1758761258822,7.239,4141.9,4141.8,0.2451]
[1758761259020,4.239,4141.9,4141.4,14.7451]
[1758761259276,0.4588,4141.8,4141.4,14.5]
[1758761259425,3.0,4141.7,4140.9,0.003]
[1758761259634,3.0,4141.5,4140.9,0.003]
[1758761259949,0.12,4141.1,4140.9,0.003]
[1758761260249,4.238,4141.0,4140.9,0.003]
[1758761260447,0.12,4141.1,4141.0,2.41487563]
[1758761260647,4.357,4141.1,4141.0,2.41487563]
[1758761260819,0.12,4141.1,4141.0,2.41487563]
[1758761261025,3.2451,4142.6,4141.0,0.6863]
[1758761261235,0.12,4141.5,4141.2,2.414759]
[1758761261440,0.12,4141.5,4141.4,2.41464239]
[1758761261634,7.356,4141.5,4141.4,14.5]
[1758761261870,3.12,4141.5,4141.4,16.91464239]
[1758761262084,7.354,4141.5,4141.4,17.59254239]
[1758761262388,0.4588,4142.5,4141.4,15.1779]
[1758761262567,0.12,4141.9,4141.5,0.6779]
[1758761262870,7.233,4141.8,4141.7,2.41446748]
[1758761263072,7.233,4141.8,4141.7,2.65786748]
[1758761263790,7.233,4141.8,4141.4,14.5]
[1758761264134,0.7068,4141.7,4141.4,14.5]
[1758761264475,0.12,4141.4,4140.8,0.002]
[1758761264680,3.7068,4141.7,4140.8,2.41697088]
[1758761264681,4.23,4141.3,4140.8,2.41697088]
[1758761264863,4.35,4141.2,4140.9,16.91788858]
[1758761265062,4.229,4141.1,4140.9,16.9179318]
[1758761265266,3.0,4141.0,4140.9,14.503]
[1758761265470,5.011,4141.0,4140.9,14.503]
[1758761265710,5.011,4141.0,4140.9,0.003]
[1758761265711,5.7178,4141.0,4140.9,0.003]
[1758761266280,5.4761,4141.0,4140.9,0.003]
[1758761266481,8.13267563,4141.0,4140.9,0.003]
[1758761266953,10.34767563,4141.0,4140.9,0.003]
[1758761267153,12.35967563,4141.0,4140.9,0.003]
[1758761268270,12.45652781,4141.0,4140.9,0.003]
[1758761268943,12.45252781,4141.0,4140.9,0.003]
[1758761269144,6.21852781,4141.0,4140.9,0.003]
[1758761269350,12.45252781,4141.0,4140.9,0.003]
[1758761269772,3.21852781,4141.0,4140.9,0.003]
[1758761269982,11.74572781,4141.0,4140.9,0.003]
[1758761270142,11.74372781,4141.0,4140.9,0.003]
[1758761270549,9.32785218,4141.0,4140.9,0.003]
[1758761270850,5.51172781,4141.0,4140.9,0.003]
[1758761271078,3.09685218,4141.0,4140.9,0.003]
[1758761271382,2.41346062,4143.5,4140.9,0.6809]
[1758761271383,0.2417,4142.0,4140.9,0.6809]
[1758761271583,0.09683108,4141.7,4140.9,0.6809]
[1758761271773,7.218,4141.6,4140.9,3.09582826]
[1758761272177,7.218,4141.6,4140.9,0.6809]
[1758761272749,0.09683108,4141.7,4140.9,0.6809]
[1758761272750,2.012,4141.5,4141.0,2.65827563]
[1758761272946,4.336,4141.4,4141.1,3.09271731]
[1758761273158,3.0,4141.3,4141.2,0.2434]
[1758761273384,3.0,4141.3,4141.2,15.1779]
[1758761273580,0.12,4141.4,4141.2,17.592659]
[1758761273885,22.12991657,4142.7,4141.4,2.41462984]
[1758761273886,2.132,4141.7,4141.4,2.41462984]
[1758761274101,4.214,4141.6,4141.5,0.2434]
[1758761274265,3.0,4141.6,4141.5,0.2434]
[1758761274466,3.0,4141.6,4141.5,3.09248408]
[1758761274666,7.213,4141.6,4141.5,3.09248408]
[1758761275354,3.0,4141.6,4141.5,3.09248408]
[1758761275557,22.59501657,4142.7,4141.8,2.41440919]
[1758761275558,2.012,4142.5,4141.8,2.41440919]
[1758761275791,0.7068,4143.5,4141.9,3.11635247]
[1758761275986,0.02,4143.9,4141.9,3.11635247]
[1758761275987,2.012,4143.2,4142.8,2.41382639]
[1758761276300,4.23,4142.9,4142.8,16.91382639]
[1758761276513,0.02,4142.9,4142.8,17.59172639]
[1758761276656,4.23,4142.9,4142.8,17.59172639]
[1758761277353,4.228,4142.9,4142.8,17.59172639]
[1758761277989,0.02,4142.9,4142.8,17.59172639]
[1758761278384,4.226,4142.9,4142.8,17.59172639]
[1758761279082,0.02,4142.9,4142.8,3.09172639]
[1758761279283,0.02,4142.9,4142.8,0.2434]
[1758761279485,0.02,4142.9,4142.5,0.792]
[1758761279670,0.02,4142.9,4142.8,16.91382639]
[1758761279997,0.02,4142.9,4142.8,14.5]
[1758761280206,0.02,4142.9,4142.8,16.91382639]
[1758761280495,0.02,4142.9,4142.8,14.5]
[1758761280703,0.02,4142.9,4142.8,18.38372639]
[1758761282105,0.02,4142.9,4142.8,17.70582639]
[1758761282309,0.02,4142.9,4142.8,17.94282639]
[1758761282506,0.02,4142.9,4142.8,17.15082639]
[1758761282686,0.02,4142.9,4142.8,14.5]
[1758761283817,4.217,4142.9,4142.8,14.5]
[1758761284017,4.217,4142.9,4142.8,16.91382639]
[1758761284320,0.02,4142.9,4142.8,16.91382639]
[1758761284486,0.02,4142.9,4142.8,18.41252639]
[1758761284683,0.02,4142.9,4142.8,3.91252639]
[1758761285492,0.02,4142.9,4142.8,4.03252639]
[1758761285687,0.02,4142.9,4142.8,0.12]
[1758761285878,0.02,4142.9,4142.3,0.237]
[1758761286078,0.14,4142.9,4142.3,2.65110685]
[1758761286305,0.14,4142.9,4142.5,2.4139735]
[1758761286501,0.14,4142.9,4142.4,2.41405948]
[1758761286819,0.14,4142.9,4142.5,2.41395781]
[1758761287008,0.14,4142.9,4142.2,0.12]
[1758761287210,0.6149,4142.9,4142.2,0.12]
[1758761287402,0.14,4142.9,4142.2,0.12]
[1758761287715,0.14,4142.9,4142.3,0.73084117]
[1758761287916,4.209,4142.9,4142.8,2.41382639]
[1758761288119,4.209,4142.9,4142.8,3.12052639]
[1758761288321,4.209,4142.9,4142.8,2.41382639]
[1758761288526,4.209,4142.9,4142.6,0.12]
[1758761288828,4.329,4142.9,4142.5,2.41396058]
[1758761289002,4.329,4142.9,4142.6,2.41394144]
[1758761289322,0.717,4142.8,4142.3,2.41411776]
[1758761289536,0.4749,4142.7,4142.2,0.12]
[1758761289702,0.5949,4142.7,4142.3,2.4141121]
[1758761289898,0.12,4142.7,4142.3,2.4141121]
[1758761290100,0.12,4142.7,4142.1,2.41422096]
[1758761290300,0.12,4142.7,4142.0,0.12]
[1758761290508,0.12,4142.7,4142.0,2.53424703]
[1758761290702,3.13094293,4142.6,4141.1,0.237]
[1758761291025,2.41411776,4142.3,4141.2,2.41475636]
[1758761291324,0.12,4141.5,4141.0,2.41483287]
[1758761291527,4.304,4141.5,4141.1,2.41478979]
[1758761291834,4.304,4141.5,4140.9,2.41788413]
[1758761292131,3.0,4141.4,4140.9,0.003]
[1758761292430,0.12,4141.1,4140.9,0.003]
[1758761292642,4.184,4141.0,4140.9,0.003]
[1758761293905,0.12,4141.1,4140.9,0.003]
[1758761294228,4.181,4141.0,4140.9,2.41788308]
[1758761294434,4.181,4141.0,4140.9,0.003]
[1758761296119,10.29967563,4141.0,4140.9,0.003]
[1758761297735,6.11867563,4141.0,4140.9,0.003]
[1758761298050,3.0,4141.0,4140.9,0.003]
[1758761298411,5.012,4141.0,4140.9,0.003]
[1758761298746,7.176,4141.0,4140.9,0.003]
[1758761298949,9.188,4141.0,4140.9,0.003]
[1758761299910,9.187,4141.0,4140.9,0.003]
[1758761300859,3.0,4141.0,4140.9,2.41793395]
[1758761301018,2.012,4141.2,4141.1,2.41481731]
[1758761301213,7.172,4141.2,4141.1,3.10270622]
[1758761301460,2.012,4141.6,4141.3,2.41465724]
[1758761301616,0.4708,4142.1,4141.4,2.41463916]
[1758761301949,0.7038,4142.6,4141.7,2.41441481]
[1758761302118,0.7038,4142.6,4141.3,0.4543]
[1758761302119,6.183,4142.5,4141.6,0.2336]
[1758761302314,2.41427843,4142.1,4141.6,0.2336]
[1758761302514,4.171,4142.0,4141.4,2.41459749]
[1758761302921,3.0,4141.9,4141.6,2.41448389]
[1758761303138,4.169,4141.8,4141.6,2.41448389]
[1758761303352,4.169,4141.8,4141.4,2.41458474]
[1758761303353,3.0,4141.7,4141.4,2.41458474]
[1758761303556,3.0,4141.7,4141.5,2.41457511]
[1758761303945,3.0,4141.7,4141.5,0.2336]
[1758761304146,3.0,4141.7,4141.5,2.64817023]
[1758761304353,3.0,4141.7,4141.5,0.2336]
[1758761304866,2.012,4141.9,4141.6,0.6879]
[1758761305078,3.0,4141.7,4141.6,0.2336]
[1758761305372,3.0,4141.7,4141.4,2.64822658]
[1758761305534,2.41424754,4142.1,4141.5,0.2336]
[1758761305736,3.0,4141.9,4141.5,0.2336]
[1758761305937,3.0,4141.7,4141.3,2.41468555]
[1758761306146,3.12,4141.7,4141.4,2.41460087]
[1758761306439,4.164,4141.6,4141.5,0.2336]
[1758761306665,4.164,4141.6,4141.5,2.64818408]
[1758761306848,0.12,4141.7,4141.6,2.41452578]
[1758761307084,0.12,4141.7,4141.6,3.10242578]
[1758761307085,7.284,4141.7,4141.6,3.10242578]
[1758761307251,7.284,4141.7,4141.6,0.2336]
[1758761307472,3.0,4141.7,4141.6,3.10242578]
[1758761307655,7.163,4141.7,4141.6,3.10242578]
[1758761308348,7.163,4141.7,4141.6,0.6879]
[1758761308682,7.163,4141.7,4141.3,0.12]
[1758761309187,7.163,4141.7,4141.5,2.41458217]
[1758761309482,7.163,4141.7,4141.3,0.12]
[1758761309483,7.163,4141.7,4141.3,2.53469519]
[1758761309649,7.163,4141.7,4141.3,0.12]
[1758761309984,7.163,4141.7,4141.6,2.41452578]
[1758761310192,7.16,4141.7,4141.6,2.41452578]
[1758761310487,7.159,4141.7,4141.6,2.41452578]
[1758761310686,3.0,4141.7,4141.6,2.41452578]
[1758761310897,7.158,4141.7,4141.6,3.10242578]
[1758761311239,3.0,4141.7,4141.6,3.10242578]
[1758761311439,2.012,4142.6,4142.4,2.41400558]
[1758761311656,4.157,4142.5,4142.4,2.86830558]
[1758761311881,7.157,4142.5,4142.0,0.4543]
[1758761312190,7.157,4142.5,4142.0,0.2336]
[1758761312341,7.157,4142.5,4142.3,2.41410522]
[1758761312690,4.157,4142.4,4142.1,0.6879]
[1758761312983,4.157,4142.4,4142.2,2.41416546]
[1758761313187,4.157,4142.4,4141.7,0.2336]
[1758761313487,4.157,4142.4,4141.9,2.41433803]
[1758761313795,3.7038,4142.3,4141.8,2.41436885]
[1758761314137,0.7038,4142.2,4141.7,2.41445697]
[1758761314463,4.6248,4142.1,4141.6,2.41452379]
[1758761314641,4.387,4142.1,4141.7,2.4144597]
[1758761314842,4.153,4142.0,4141.3,0.792]
[1758761315177,4.153,4142.0,4141.4,0.2336]
[1758761315470,4.153,4142.0,4141.7,2.41442293]
[1758761315682,4.153,4142.0,4141.9,2.4143509]
[1758761315843,3.0,4142.3,4141.4,0.2336]
[1758761316186,3.0,4142.1,4141.7,2.41446283]
[1758761316538,3.0,4142.1,4141.8,2.41439995]
[1758761316837,3.0,4142.1,4141.9,2.41430526]
[1758761317273,0.37858859,4142.6,4141.4,0.2336]
[1758761317572,2.43480594,4142.9,4142.2,2.41413875]
[1758761317742,3.0,4142.7,4142.2,2.41417604]
[1758761317944,3.0,4142.7,4142.2,2.64775753]
[1758761318270,3.0,4142.7,4142.2,2.41415753]
[1758761318576,3.0,4142.7,4141.5,2.41457023]
[1758761318577,0.7038,4142.6,4142.1,2.41422371]
[1758761318739,3.0,4142.4,4142.1,2.41422371]
[1758761318942,2.012,4142.5,4142.3,2.41405971]
[1758761319254,7.147,4142.4,4142.3,2.41405971]
[1758761319974,3.0,4142.3,4142.2,2.41416377]
[1758761320174,0.021,4142.9,4142.4,2.41405948]
[1758761320373,2.012,4142.5,4141.8,0.2336]
[1758761320672,4.6158,4142.4,4141.7,2.41446748]
[1758761320878,4.6158,4142.4,4142.2,2.41417291]
[1758761321255,4.6158,4142.4,4141.6,0.792]
[1758761321450,0.12,4142.3,4141.8,2.41439205]
[1758761321664,0.12,4142.3,4141.5,2.64818228]
[1758761321665,0.4708,4142.2,4141.9,2.41431747]
[1758761321840,4.264,4142.1,4141.5,0.2336]
[1758761322040,4.264,4142.1,4141.9,2.41434929]
[1758761322562,7.264,4142.1,4142.0,2.41429261]
[1758761322871,7.6928,4142.1,4141.7,2.41445821]
[1758761323172,7.6928,4142.1,4141.8,2.41440509]
[1758761323379,7.6928,4142.1,4141.9,2.41434661]
[1758761323588,7.264,4142.1,4141.4,0.12]
[1758761323771,7.6928,4142.1,4141.7,2.41440992]
[1758761323970,7.6928,4142.1,4141.6,2.41450586]
[1758761324176,7.6928,4142.1,4142.0,2.41429261]
[1758761324472,7.264,4142.1,4142.0,2.41429261]
[1758761324978,3.0,4142.1,4142.0,2.66129261]
[1758761325137,3.0,4142.1,4142.0,3.09119261]
[1758761325138,4.14,4142.1,4142.0,3.09119261]
[1758761325540,0.12,4142.6,4142.5,2.4140012]
[1758761325789,0.12,4142.6,4142.5,3.0909012]
[1758761326078,7.139,4142.6,4142.5,3.0909012]
[1758761326439,3.0,4142.5,4142.1,2.96407955]
[1758761326644,4.139,4142.6,4142.1,0.12]
[1758761326944,0.12,4142.8,4142.2,0.6769]
[1758761327238,4.137,4142.7,4142.6,2.4139329]
[1758761327438,7.137,4142.7,4142.6,2.4139329]
[1758761330296,0.001,4142.8,4142.7,2.41388466]
[1758761330460,0.001,4142.8,4142.7,3.1149235]
[1758761330666,1.942,4142.8,4142.7,3.1149235]
[1758761330862,0.001,4142.8,4142.7,3.88278466]
[1758761331085,0.001,4142.8,4142.7,4.00278466]
[1758761332455,0.001,4142.8,4142.7,3.57288466]
[1758761333058,0.001,4142.8,4142.7,4.00278466]
[1758761334488,0.001,4142.8,4142.7,4.0269235]
[1758761334977,0.001,4142.8,4142.7,0.12]
[1758761335174,0.001,4142.8,4142.5,3.20799716]
[1758761335378,4.128,4142.7,4142.5,0.002]
[1758761335612,4.128,4142.7,4142.6,2.41394293]
[1758761336113,4.128,4142.7,4142.5,0.002]
[1758761337029,4.128,4142.7,4142.5,2.41599225]
[1758761337186,4.128,4142.7,4142.5,0.002]
[1758761337389,4.5568,4142.7,4142.5,0.002]
[1758761337705,4.125,4142.6,4142.5,0.002]
[1758761338085,4.125,4142.6,4142.5,2.4160012]
[1758761338280,4.125,4142.6,4142.5,0.002]
[1758761338729,4.5538,4142.6,4142.5,0.002]
[1758761339082,0.001,4142.8,4142.6,2.41389709]
[1758761339313,4.123,4142.7,4142.5,2.41598515]
[1758761340021,4.123,4142.7,4142.5,0.002]
[1758761340379,0.4288,4142.6,4142.5,0.002]
[1758761340789,5.84274293,4142.6,4142.5,0.002]
[1758761340991,6.08784293,4142.6,4142.5,0.002]
[1758761342531,6.08784293,4142.6,4142.5,2.41599549]
[1758761342532,6.85704681,4142.6,4142.5,2.41599549]
[1758761342681,9.85704681,4142.6,4142.5,0.244]
[1758761342884,9.131,4142.6,4142.5,0.002]
[1758761343085,3.0,4142.6,4142.5,0.002]
[1758761343304,4.12,4142.6,4142.5,3.0995012]
[1758761343484,0.001,4142.8,4142.5,3.0995012]
[1758761343691,4.119,4142.7,4142.6,2.41393973]
[1758761343892,4.119,4142.7,4142.5,2.65798564]
[1758761344091,4.119,4142.7,4142.6,2.41394293]
[1758761344292,0.001,4142.8,4142.7,2.41388466]
[1758761344516,4.004,4142.8,4142.7,3.09738466]
[1758761344715,4.004,4142.8,4142.7,2.65588466]
[1758761344882,4.004,4142.8,4142.7,2.41388466]
[1758761345722,4.124,4142.8,4142.7,2.41388466]
[1758761345907,4.124,4142.8,4142.6,2.41393896]
[1758761346107,4.124,4142.8,4142.5,0.002]
[1758761346108,4.3691,4142.8,4142.5,0.002]
[1758761346436,0.4607,4142.7,4142.6,2.41394293]
[1758761346586,4.124,4142.8,4142.5,0.002]
[1758761346786,4.117,4142.7,4142.5,2.41598702]
[1758761346986,4.117,4142.7,4142.6,2.41394293]
[1758761347184,0.121,4142.8,4142.7,2.41388466]
[1758761347492,6.248,4142.8,4142.6,2.41392498]
[1758761347691,4.115,4142.7,4142.6,2.41389607]
[1758761347889,4.115,4142.7,4142.5,2.41596185]
[1758761348437,4.115,4142.7,4142.5,0.002]
[1758761348642,4.115,4142.7,4142.6,2.41394293]
[1758761349066,0.121,4142.8,4142.7,2.41388466]
[1758761349214,0.121,4142.8,4142.7,2.65588466]
[1758761349414,6.245,4142.8,4142.7,2.65588466]
[1758761349612,0.121,4142.8,4142.7,3.1215235]
[1758761349815,0.001,4142.8,4142.7,3.21738466]
[1758761350750,0.001,4142.8,4142.6,2.41389836]
[1758761350913,4.5737,4142.7,4142.6,2.41389964]
[1758761351110,4.113,4142.7,4142.6,2.41389964]
[1758761351548,4.113,4142.7,4142.6,2.65589964]
[1758761351747,4.113,4142.7,4142.5,0.002]
[1758761352161,4.113,4142.7,4142.5,2.41599565]
[1758761352451,0.001,4142.8,4142.6,2.41394293]
[1758761352754,4.11,4142.7,4142.6,2.41394293]
[1758761352918,4.8181,4142.7,4142.5,0.002]
[1758761353249,7.9381,4142.6,4142.5,0.002]
[1758761354417,10.35204293,4142.6,4142.5,0.002]
[1758761355555,7.9381,4142.6,4142.5,0.002]
[1758761355766,12.11714293,4142.6,4142.5,0.002]
[1758761356119,12.36104293,4142.6,4142.5,0.002]
[1758761356623,9.9471,4142.6,4142.5,0.002]
[1758761356934,12.36104293,4142.6,4142.5,0.002]
[1758761357548,3.12,4142.6,4142.5,0.002]
[1758761357742,6.119,4142.6,4142.5,0.697]
[1758761357956,9.3528,4142.6,4142.5,0.2358]
[1758761358265,9.119,4142.6,4142.5,0.002]
[1758761359454,11.99714293,4142.6,4142.5,0.002]
[1758761359664,9.8271,4142.6,4142.5,0.002]
[1758761361326,12.24104293,4142.6,4142.5,0.002]
[1758761363981,12.24104293,4142.6,4142.0,0.002]
[1758761363982,2.41423432,4142.1,4142.0,0.002]
[1758761364164,6.51623432,4142.1,4142.0,0.002]
[1758761364371,10.22433432,4142.1,4142.0,0.002]
[1758761364681,6.84851118,4142.1,4142.0,0.002]
[1758761364879,12.96051118,4142.1,4142.0,0.002]
[1758761365043,12.25141118,4142.1,4142.0,0.002]
[1758761365241,6.60461118,4142.1,4142.0,0.002]
[1758761365463,12.25141118,4142.1,4142.0,0.002]
[1758761366669,5.73717686,4142.1,4142.0,0.697]
[1758761366972,34.37956204,4142.1,4142.0,0.002]
[1758761367468,28.40430049,4142.1,4142.0,0.002]
[1758761367667,28.40130049,4142.1,4142.0,0.002]
[1758761367975,34.97450049,4142.1,4142.0,0.002]
[1758761368174,3.83983845,4142.1,4142.0,0.002]
[1758761368375,11.98443432,4142.1,4142.0,0.002]
[1758761369177,9.97343432,4142.1,4142.0,0.002]
[1758761369354,11.98443432,4142.1,4142.0,0.002]
[1758761370244,9.5702,4142.1,4142.0,0.002]
[1758761370959,3.4612,4142.1,4142.0,0.002]
[1758761371162,2.012,4142.3,4142.2,2.41417604]
[1758761371361,6.107,4142.3,4142.2,3.10917604]
[1758761371602,9.107,4142.3,4142.2,17.60917604]
[1758761372093,3.0,4142.3,4142.2,17.60917604]
[1758761372393,7.095,4142.3,4142.2,15.195]
[1758761372694,7.095,4142.3,4142.2,17.60917604]
[1758761372990,3.0,4142.3,4142.2,17.60917604]
[1758761373193,0.12,4142.4,4142.3,2.41411776]
[1758761373399,0.121,4142.8,4142.5,2.4140012]
[1758761373560,3.0,4142.6,4142.5,2.4140012]
[1758761373758,3.0,4142.6,4142.5,3.1090012]
[1758761374202,3.0,4142.6,4142.5,0.695]
[1758761375504,3.0,4142.6,4142.5,3.1090012]
[1758761375813,3.0,4142.6,4142.5,0.695]
[1758761375965,3.0,4142.6,4142.5,0.2338]
[1758761376168,10.13212731,4142.6,4142.2,14.5]
[1758761376368,4.094,4142.5,4142.3,2.41411747]
[1758761376599,7.094,4142.5,4142.4,0.2338]
[1758761377369,7.094,4142.5,4142.4,2.64785948]
[1758761377567,0.121,4142.8,4142.7,2.41388466]
[1758761377766,0.001,4142.8,4142.7,2.41388466]
[1758761378101,0.001,4142.8,4142.7,3.90088466]
[1758761378319,2.662,4142.8,4142.7,4.02088466]
[1758761378514,0.001,4142.8,4142.7,4.02088466]
[1758761379465,0.001,4142.8,4142.7,4.0450235]
[1758761379688,0.001,4142.8,4142.7,25.67715081]
[1758761379967,0.001,4142.8,4142.7,25.65301197]
[1758761380768,0.001,4142.8,4142.7,29.74701197]
[1758761381772,0.001,4142.8,4142.7,22.61488466]
[1758761384827,0.001,4142.8,4142.7,22.61388466]
[1758761392643,0.02,4143.9,4143.0,0.792]
[1758761392859,0.02,4143.9,4143.6,3.20536036]
[1758761393033,0.02,4143.9,4143.7,0.792]
[1758761393034,1e-08,4143.9,4143.7,0.792]
[1758761393239,1e-08,4143.9,4143.8,17.72937631]
[1758761393429,1e-08,4143.9,4143.8,17.70524388]
[1758761393630,1e-08,4143.9,4143.8,21.79724388]
[1758761393856,1e-08,4143.9,4143.8,22.51024388]
[1758761394846,1e-08,4143.9,4143.8,22.04694388]
[1758761396432,1e-08,4143.9,4143.8,17.70524388]
[1758761396777,1e-08,4143.9,4143.8,21.79724388]
[1758761398254,1e-08,4143.9,4143.8,22.04694388]
[1758761398775,1e-08,4143.9,4143.8,22.51024388]
[1758761400152,1e-08,4143.9,4143.8,22.50924388]
[1758761400460,1e-08,4143.9,4143.8,22.04594388]
[1758761400666,1e-08,4143.9,4143.8,22.50924388]
[1758761402300,1e-08,4143.9,4143.8,22.04594388]
[1758761402787,1e-08,4143.9,4143.8,21.91624388]
[1758761402988,1e-08,4143.9,4143.8,21.12424388]
[1758761403175,0.46440001,4143.9,4143.8,21.12424388]
[1758761403355,0.46440001,4143.9,4143.8,21.91624388]
[1758761403545,1e-08,4143.9,4143.8,21.91624388]
[1758761405201,0.46440001,4143.9,4143.8,21.91624388]
[1758761405376,0.69480001,4143.9,4143.8,16.91324388]
[1758761406573,0.69580001,4143.9,4143.8,16.91324388]
[1758761407821,0.00100001,4143.9,4143.8,3.20524388]
[1758761408314,0.00100001,4143.9,4143.8,17.70524388]
[1758761408515,0.00100001,4143.9,4143.8,18.40104388]
[1758761409214,0.00100001,4143.9,4143.8,17.70524388]
[1758761410307,0.00100001,4143.9,4143.8,18.40104388]
[1758761412495,0.00100001,4143.9,4143.8,17.70524388]
[1758761412668,0.00100001,4143.9,4143.8,16.91324388]
[1758761412669,0.45830001,4143.9,4143.8,16.91324388]
[1758761413000,0.68380001,4143.9,4143.8,16.91324388]
[1758761413203,0.68380001,4143.9,4143.8,17.70524388]
[1758761413682,0.45830001,4143.9,4143.8,17.70524388]
[1758761414501,0.00100001,4143.9,4143.8,17.70524388]
[1758761417983,0.00100001,4143.9,4143.8,17.82524388]